bitfinex-derivatives/quotes_SOLF0:USTF0_20260308
["timestamp","ask_amount","ask_price","bid_price","bid_amount"]
[1773004433682,10.25316471,81.82,81.741,4.91403508]
[1773004434075,11.003,81.8,81.741,4.91403508]
[1773004435285,10.25316471,81.8,81.716,4.91367617]
[1773004435783,11.005,81.781,81.716,4.91367617]
[1773004436278,11.008,81.756,81.681,4.93350743]
[1773004436479,10.25316471,81.73,81.631,5.99832516]
[1773004436673,10.25316471,81.75,81.641,5.99832516]
[1773004436982,11.011,81.739,81.671,5.99832516]
[1773004437879,11.009,81.752,81.671,5.99832516]
[1773004438476,11.007,81.766,81.691,5.96222096]
[1773004439177,10.09936191,81.82,81.72,10.25316471]
[1773004439384,10.25316471,81.82,81.721,6.04035019]
[1773004439784,11.003,81.793,81.721,6.04035019]
[1773004439980,10.25316471,81.82,81.741,6.04035019]
[1773004440386,10.25316471,81.85,81.761,6.03996384]
[1773004440578,297.89217533,81.867,81.78,10.25316471]
[1773004440778,297.89217533,81.867,81.781,6.03996384]
[1773004440977,10.996,81.849,81.781,6.03996384]
[1773004441179,297.89217533,81.867,81.8,16.29312855]
[1773004441387,297.89217533,81.867,81.801,6.06316827]
[1773004442879,10.994,81.863,81.801,6.06316827]
[1773004448585,10.994,81.863,81.782,11.005]
[1773004448779,10.23764267,81.85,81.766,6.0237161]
[1773004449889,10.997,81.844,81.766,6.0237161]
[1773004450188,297.89217533,81.867,81.781,6.02282688]
[1773004450785,10.23764267,81.85,81.781,6.02282688]
[1773004451089,10.23764267,81.85,81.768,6.02248135]
[1773004451386,10.997,81.843,81.773,6.0232642]
[1773004454388,10.998,81.833,81.773,6.0232642]
[1773004455890,10.997,81.845,81.773,6.0232642]
[1773004456192,10.997,81.845,81.781,6.00370794]
[1773004456489,297.89217533,81.867,81.793,6.00337225]
[1773004457290,10.995,81.856,81.793,6.00337225]
[1773004462299,10.996,81.846,81.793,6.00337225]
[1773004466694,10.25687866,81.866,81.796,6.13660386]
[1773004466997,297.89217533,81.867,81.796,6.13660386]
[1773004467194,10.994,81.866,81.815,11.0]
[1773004467399,10.2652491,81.879,81.816,6.1331931]
[1773004467693,10.26797709,81.896,81.821,6.1331931]
[1773004467999,10.26797709,81.896,81.82,10.23764267]
[1773004468000,10.99,81.896,81.838,6.1331931]
[1773004469396,10.988,81.905,81.84,6.04816939]
[1773004470900,10.99,81.897,81.84,6.04816939]
[1773004471802,10.23764267,81.9,81.826,17.030648]
[1773004472100,10.26077315,81.899,81.826,17.030648]
[1773004472299,10.26077315,81.898,81.826,17.030648]
[1773004472499,10.26077315,81.897,81.826,17.030648]
[1773004472694,10.26077315,81.899,81.826,17.030648]
[1773004472890,10.991,81.883,81.826,17.030648]
[1773004473092,10.991,81.883,81.827,6.03138851]
[1773004473298,10.991,81.883,81.828,10.999]
[1773004473696,10.25778539,81.914,81.828,4.74335077]
[1773004473897,10.1993906,81.931,81.821,22.0]
[1773004474101,10.1993906,81.931,81.86,10.23764267]
[1773004474304,10.1993906,81.931,81.857,10.995]
[1773004474495,10.1993906,81.931,81.84,10.23764267]
[1773004474700,10.19964038,81.919,81.82,10.23764267]
[1773004474895,10.19964038,81.918,81.852,10.995]
[1773004476805,10.19964038,81.918,81.862,10.994]
[1773004481407,9.97066083,81.909,81.852,10.995]
[1773004483606,9.96323518,81.906,81.84,10.997]
[1773004484201,9.96323518,81.889,81.84,10.997]
[1773004484397,10.23764267,81.89,81.817,11.0]
[1773004484398,9.96400865,81.875,81.817,11.0]
[1773004485516,10.00872313,81.869,81.817,11.0]
[1773004487007,10.0095911,81.859,81.77,10.23764267]
[1773004488110,10.01012279,81.856,81.795,11.003]
[1773004488510,10.01097041,81.854,81.795,11.003]
[1773004488908,10.01097041,81.839,81.784,11.005]
[1773004489114,10.01097041,81.839,81.75,10.23764267]
[1773004490810,10.01097041,81.839,81.791,11.004]
[1773004491305,10.01097041,81.839,81.75,10.23764267]
[1773004491512,10.01097041,81.839,81.779,11.005]
[1773004492814,10.01097041,81.839,81.79,11.004]
[1773004493015,10.04412331,81.854,81.77,10.23764267]
[1773004493408,10.11418849,81.839,81.75,10.23764267]
[1773004494814,10.11520469,81.836,81.769,11.007]
[1773004495813,10.08698519,81.834,81.769,11.007]
[1773004496415,10.08791376,81.831,81.769,11.007]
[1773004496816,10.08791376,81.819,81.769,11.007]
[1773004500218,10.06802171,81.834,81.79,11.004]
[1773004500418,10.06802171,81.834,81.75,10.23764267]
[1773004500618,10.06802171,81.819,81.732,22.024]
[1773004501717,10.06309907,81.839,81.75,10.23764267]
[1773004501910,10.06309907,81.839,81.73,10.23764267]
[1773004502110,10.06309907,81.839,81.734,22.023]
[1773004502621,10.06390558,81.819,81.734,22.023]
[1773004503120,10.06390558,81.819,81.775,11.006]
[1773004505417,10.06390558,81.819,81.734,22.023]
[1773004505919,10.06390558,81.819,81.75,10.23764267]
[1773004506520,10.06390558,81.819,81.734,22.023]
[1773004507720,10.06390558,81.819,81.74,10.24659044]
[1773004507915,10.06390558,81.819,81.773,11.006]
[1773004508523,10.07729985,81.817,81.74,10.24659044]
[1773004508724,10.07729985,81.809,81.72,219.73433899]
[1773004509226,10.0960203,81.807,81.759,11.008]
[1773004510020,10.0960203,81.807,81.759,4.908]
[1773004510328,10.09678707,81.829,81.74,10.24659044]
[1773004510729,10.09678707,81.823,81.776,11.006]
[1773004513631,10.11788763,81.821,81.764,11.007]
[1773004513925,21.985,81.877,81.72,219.73433899]
[1773004513926,11.18159385,81.893,81.81,10.24659044]
[1773004514123,11.18159385,81.879,81.79,10.24659044]
[1773004514315,11.18159385,81.861,81.77,10.24659044]
[1773004514519,11.18235698,81.859,81.77,10.24659044]
[1773004514727,11.18235698,81.859,81.801,11.002]
[1773004515122,11.18235698,81.859,81.79,10.24659044]
[1773004515618,11.18235698,81.859,81.811,11.001]
[1773004516018,11.10156425,81.879,81.79,10.24659044]
[1773004516225,11.10156425,81.879,81.816,11.0]
[1773004516527,11.10156425,81.879,81.8,10.24659044]
[1773004517920,11.10156425,81.879,81.826,10.999]
[1773004519522,11.10156425,81.879,81.815,11.0]
[1773004520920,11.10156425,81.879,81.723,30.11597772]
[1773004520921,11.10448012,81.864,81.723,12.21]
[1773004521232,11.10448012,81.864,81.79,10.24659044]
[1773004523524,11.18223525,81.863,81.79,10.24659044]
[1773004523733,11.18223525,81.859,81.77,10.24659044]
[1773004524925,11.18295259,81.851,81.781,11.005]
[1773004528741,11.18295259,81.851,81.791,11.004]
[1773004528938,11.18295259,81.851,81.77,10.24659044]
[1773004529133,11.18295259,81.851,81.79,10.24659044]
[1773004529635,11.18295259,81.851,81.758,22.017]
[1773004529838,11.17219129,81.839,81.74,10.24659044]
[1773004530141,11.17219129,81.837,81.74,10.24659044]
[1773004530333,11.17284197,81.835,81.74,10.24659044]
[1773004530541,11.17284197,81.827,81.769,11.007]
[1773004531032,11.17284197,81.819,81.72,219.73433899]
[1773004531738,11.17471671,81.814,81.746,11.01]
[1773004531941,11.17471671,81.814,81.72,219.73433899]
[1773004532238,11.17535548,81.812,81.73,10.24659044]
[1773004532445,11.17535548,81.799,81.72,209.48774855]
[1773004532839,21.12419029,81.799,81.72,209.48774855]
[1773004533043,21.12419029,81.798,81.72,220.50074855]
[1773004533245,11.1648991,81.796,81.71,10.24659044]
[1773004533445,11.1648991,81.794,81.69,10.24659044]
[1773004533742,11.1648991,81.779,81.69,10.24659044]
[1773004534245,11.1648991,81.779,81.71,10.24659044]
[1773004534743,11.16549925,81.799,81.73,10.24659044]
[1773004535340,11.16549925,81.799,81.72,10.24659044]
[1773004535536,11.16549925,81.799,81.74,10.24659044]
[1773004535741,11.12185183,81.829,81.74,10.24659044]
[1773004535942,11.12185183,81.827,81.755,11.009]
[1773004538054,11.12185183,81.827,81.767,11.007]
[1773004538248,11.12185183,81.827,81.77,10.24659044]
[1773004539744,11.12185183,81.827,81.779,11.005]
[1773004540551,11.2559912,81.842,81.789,11.004]
[1773004544852,11.2559912,81.842,81.798,11.003]
[1773004547954,11.3956261,81.856,81.79,10.24659044]
[1773004548760,11.3956261,81.856,81.816,11.0]
[1773004548960,11.3956261,81.856,81.79,10.24659044]
[1773004549762,11.3956261,81.856,81.806,11.002]
[1773004551659,11.38696428,81.875,81.829,10.999]
[1773004551964,11.38696428,81.875,81.81,10.24659044]
[1773004552464,11.38696428,81.875,81.819,11.0]
[1773004553064,11.38696428,81.875,81.83,10.998]
[1773004553270,11.38696428,81.875,81.81,10.24659044]
[1773004554065,11.38696428,81.875,81.829,10.999]
[1773004554370,11.38696428,81.875,81.81,10.24659044]
[1773004555068,11.38696428,81.875,81.838,10.997]
[1773004555466,11.20961455,81.89,81.838,10.997]
[1773004557971,11.20961455,81.89,81.847,10.996]
[1773004558670,11.20961455,81.89,81.855,10.995]
[1773004560070,11.18393954,81.903,81.855,10.995]
[1773004560372,11.18393954,81.903,81.85,10.24659044]
[1773004560667,11.1843874,81.892,81.83,10.24659044]
[1773004560872,11.1843874,81.892,81.81,10.24659044]
[1773004561270,11.1843874,81.884,81.83,10.24659044]
[1773004561863,2.12539851,81.927,81.85,10.24659044]
[1773004561864,11.1606705,81.91,81.85,10.24659044]
[1773004562774,11.1606705,81.91,81.864,10.994]
[1773004562972,11.1606705,81.91,81.85,10.24659044]
[1773004563771,11.1606705,81.91,81.872,10.993]
[1773004564374,11.07357411,81.923,81.881,10.992]
[1773004564680,11.07357411,81.923,81.85,10.24659044]
[1773004564879,11.07357411,81.912,81.854,10.995]
[1773004565867,11.2006202,81.91,81.85,10.24659044]
[1773004566776,11.20134176,81.902,81.85,10.24659044]
[1773004569677,11.20134176,81.902,81.845,10.996]
[1773004571877,11.20134176,81.902,81.84,10.22391166]
[1773004572471,11.20134176,81.902,81.861,10.994]
[1773004572678,11.17779284,81.918,81.86,10.22391166]
[1773004573181,11.17779284,81.918,81.878,10.992]
[1773004575482,11.17779284,81.918,81.869,10.993]
[1773004575680,11.17779284,81.918,81.86,10.22391166]
[1773004576082,11.17779284,81.918,81.884,10.991]
[1773004576385,11.17386131,81.941,81.884,10.991]
[1773004577277,11.15790986,81.939,81.884,10.991]
[1773004577881,11.15790986,81.957,81.88,10.22391166]
[1773004578284,13.28240659,81.957,81.86,10.22391166]
[1773004578681,11.15806569,81.946,81.89,10.99]
[1773004578883,11.15806569,81.946,81.88,10.22391166]
[1773004579883,11.15806569,81.946,81.899,10.989]
[1773004584984,11.15461982,81.945,81.89,10.99]
[1773004586695,10.983,81.944,81.89,10.99]
[1773004586995,11.15144659,81.943,81.89,10.99]
[1773004587997,11.15158567,81.939,81.86,10.22391166]
[1773004588887,11.15158567,81.939,81.887,10.991]
[1773004589491,11.15927469,81.935,81.879,10.992]
[1773004590693,11.15927469,81.935,81.892,10.99]
[1773004592689,11.16769847,81.946,81.899,10.989]
[1773004597496,11.16769847,81.946,81.86,10.22391166]
[1773004597802,11.18904655,81.944,81.86,10.22391166]
[1773004598004,11.18904655,81.942,81.86,10.22391166]
[1773004598203,11.18904655,81.94,81.86,10.22391166]
[1773004598509,11.18917332,81.938,81.86,10.22391166]
[1773004598802,11.18917332,81.922,81.87,10.993]
[1773004600307,11.18917332,81.922,81.84,10.22391166]
[1773004600308,11.19308653,81.949,81.88,10.22391166]
[1773004601607,11.19308653,81.949,81.9,10.989]
[1773004605000,11.21033468,81.947,81.892,10.99]
[1773004606904,10.983,81.946,81.892,10.99]
[1773004607103,11.19562984,81.945,81.892,10.99]
[1773004608313,11.19827175,81.935,81.882,10.991]
[1773004610916,11.1813607,81.931,81.882,10.991]
[1773004611926,11.18293644,81.929,81.882,10.991]
[1773004612524,11.18304482,81.927,81.874,10.992]
[1773004613624,3.81499001,81.92,81.874,10.992]
[1773004613923,14.97377967,81.92,81.874,10.992]
[1773004614125,11.15878966,81.919,81.874,10.992]
[1773004615829,11.15878966,81.919,81.88,3.81499001]
[1773004617028,11.15902021,81.907,81.856,10.995]
[1773004617237,14.97401022,81.92,81.87,3.81499001]
[1773004617433,11.16172083,81.919,81.87,3.81499001]
[1773004618531,14.99094711,81.962,81.818,12.21]
[1773004618532,11.16181792,81.933,81.89,3.81499001]
[1773004618732,3.81499001,81.93,81.88,3.81499001]
[1773004618930,11.16181792,81.929,81.88,3.81499001]
[1773004619832,11.16181792,81.929,81.882,10.991]
[1773004620336,22.15404048,81.94,81.89,3.81499001]
[1773004620531,11.17004048,81.939,81.89,3.81499001]
[1773004620925,11.17004048,81.929,81.88,3.81499001]
[1773004621125,3.81499001,81.92,81.87,3.81499001]
[1773004621436,11.17004048,81.919,81.87,3.81499001]
[1773004621633,11.17289957,81.932,81.89,3.81499001]
[1773004622539,11.17299437,81.929,81.884,10.991]
[1773004624340,3.81499001,81.91,81.86,3.81499001]
[1773004624535,11.17777843,81.909,81.86,3.81499001]
[1773004624727,11.17777843,81.899,81.85,3.81499001]
[1773004626041,11.17777843,81.899,81.82,30.11597772]
[1773004626042,11.17777843,81.899,81.86,3.81499001]
[1773004626236,11.17777843,81.899,81.85,3.81499001]
[1773004626639,11.17777843,81.899,81.853,10.995]
[1773004628643,11.15913772,81.889,81.853,10.995]
[1773004629839,3.81499001,81.9,81.853,10.995]
[1773004630143,11.17893841,81.903,81.861,10.994]
[1773004630340,11.17893841,81.903,81.818,52.11697772]
[1773004630537,11.17902235,81.889,81.842,10.997]
[1773004633044,11.17902235,81.889,81.85,14.81407643]
[1773004633942,11.18146308,81.907,81.85,14.81407643]
[1773004634144,3.81807643,81.9,81.85,3.81807643]
[1773004634339,11.18146308,81.899,81.85,3.81807643]
[1773004634745,11.18146308,81.899,81.845,10.996]
[1773004635246,11.18146308,81.899,81.85,3.81807643]
[1773004637142,11.18146308,81.899,81.851,10.996]
[1773004637543,11.17517862,81.896,81.85,3.81807643]
[1773004638846,11.17517862,81.896,81.85,14.81407643]
[1773004639947,11.18823453,81.947,81.85,3.81807643]
[1773004640252,11.17701865,81.899,81.85,3.81807643]
[1773004641748,11.17701865,81.899,81.853,10.995]
[1773004646757,11.17701865,81.899,81.86,10.994]
[1773004648354,11.17701865,81.899,81.869,10.993]
[1773004648548,11.17701865,81.899,81.86,3.81807643]
[1773004649758,11.17701865,81.899,81.861,10.994]
[1773004650562,11.17701865,81.899,81.869,10.993]
[1773004654471,11.17701865,81.899,81.861,10.994]
[1773004656969,11.17701865,81.899,81.853,10.995]
[1773004663265,11.17701865,81.899,81.862,10.994]
[1773004663470,11.17701865,81.899,81.85,3.81807643]
[1773004664878,11.17701865,81.899,81.854,10.995]
[1773004668275,11.17701865,81.899,81.83,30.11597772]
[1773004668479,3.81807643,81.9,81.845,10.996]
[1773004668480,11.19025357,81.896,81.845,10.996]
[1773004668878,11.19025357,81.896,81.86,3.81807643]
[1773004669881,11.19025357,81.896,81.861,10.994]
[1773004675184,11.19025357,81.896,81.86,3.81807643]
[1773004679288,11.19025357,81.896,81.853,10.995]
[1773004680088,11.35166292,81.889,81.845,10.996]
[1773004680285,11.35166292,81.889,81.794,37.76773566]
[1773004680286,11.35166292,81.869,81.79,30.11597772]
[1773004680486,11.35172771,81.849,81.8,3.81807643]
[1773004682490,11.35172771,81.849,81.81,3.81807643]
[1773004684902,11.35172771,81.849,81.755,22.017]
[1773004685191,11.35172771,81.849,81.81,3.81807643]
[1773004687493,11.31534515,81.869,81.82,3.81807643]
[1773004691197,11.2933308,81.859,81.812,11.001]
[1773004692391,11.2933308,81.859,81.81,3.81807643]
[1773004693694,11.2933308,81.859,81.81,3.82165891]
[1773004696604,11.40757998,81.855,81.81,3.82165891]
[1773004699509,11.45281158,81.848,81.794,11.003]
[1773004699698,11.45281158,81.848,81.8,3.82165891]
[1773004700106,11.45281158,81.848,81.81,3.82165891]
[1773004700604,11.45281158,81.848,81.82,3.82165891]
[1773004707214,11.45281158,81.848,81.776,22.012]
[1773004707215,11.45281158,81.848,81.807,11.001]
[1773004707411,11.45281158,81.848,81.81,3.82165891]
[1773004711116,11.45281158,81.848,81.811,11.001]
[1773004722023,11.45281158,81.848,81.803,11.002]
[1773004723428,11.45281158,81.848,81.81,3.82165891]
[1773004723635,11.45281158,81.848,81.8,3.82165891]
[1773004723834,11.5060024,81.839,81.79,3.82165891]
[1773004725739,11.5060024,81.839,81.8,11.002]
[1773004727638,11.45566357,81.853,81.807,11.001]
[1773004727840,10.2466447,81.852,81.807,11.001]
[1773004728041,11.45566357,81.85,81.807,11.001]
[1773004728341,11.45566357,81.848,81.807,11.001]
[1773004728541,11.4557084,81.846,81.807,11.001]
[1773004728740,11.4557084,81.844,81.807,11.001]
[1773004728936,10.2466447,81.843,81.813,11.001]
[1773004729141,11.4557084,81.856,81.82,3.82165891]
[1773004730137,11.27852889,81.877,81.82,3.82165891]
[1773004730138,11.45380904,81.876,81.82,3.82165891]
[1773004730340,11.45380904,81.874,81.82,3.82165891]
[1773004730537,11.45385197,81.872,81.83,3.82165891]
[1773004730737,11.45385197,81.87,81.831,10.998]
[1773004731945,11.45385197,81.87,81.84,3.82165891]
[1773004732548,11.44367721,81.882,81.841,10.997]
[1773004733048,11.44367721,81.882,81.85,3.82165891]
[1773004733550,11.44367721,81.882,81.841,10.997]
[1773004733948,3.82165891,81.9,81.85,3.82165891]
[1773004734149,11.48350132,81.898,81.85,3.82165891]
[1773004734450,11.48353844,81.896,81.85,3.82165891]
[1773004737649,11.52301375,81.889,81.84,3.82165891]
[1773004738140,11.52301375,81.879,81.83,3.82165891]
[1773004738742,11.52301375,81.879,81.801,22.005]
[1773004738743,11.52301375,81.879,81.82,3.82165891]
[1773004739341,11.52301375,81.879,81.831,10.998]
[1773004740754,11.52301375,81.879,81.765,176.0]
[1773004740755,11.52849791,81.869,81.82,3.82165891]
[1773004741348,11.52849791,81.869,81.83,3.82165891]
[1773004741948,11.54493707,81.881,81.84,3.82165891]
[1773004743758,11.54493707,81.881,81.85,3.82165891]
[1773004748561,11.54493707,81.881,81.851,10.996]
[1773004754963,11.54493707,81.881,81.83,3.81821936]
[1773004755562,11.54493707,81.881,81.84,3.81821936]
[1773004755758,11.54493707,81.881,81.841,10.997]
[1773004760563,11.54120507,81.869,81.82,3.81821936]
[1773004760768,11.54120507,81.859,81.81,3.81821936]
[1773004761867,11.54120507,81.859,81.814,11.001]
[1773004762666,11.54120507,81.859,81.822,10.999]
[1773004765561,3.81821936,81.87,81.822,10.999]
[1773004765764,11.53402467,81.869,81.822,10.999]
[1773004766469,11.53402467,81.869,81.829,10.999]
[1773004768473,3.81821936,81.86,81.829,10.999]
[1773004768671,3.81821936,81.85,81.8,3.81821936]
[1773004768872,11.57144354,81.849,81.8,3.81821936]
[1773004769172,14.99094711,81.909,81.689,75.39836699]
[1773004769173,11.57144354,81.839,81.79,3.81821936]
[1773004770772,11.57144354,81.839,81.801,11.002]
[1773004774771,11.57144354,81.839,81.79,3.81821936]
[1773004775976,11.57144354,81.839,81.799,11.003]
[1773004779078,10.995,81.856,81.759,22.016]
[1773004779079,11.50299104,81.853,81.801,11.002]
[1773004779981,11.50299104,81.853,81.81,3.81821936]
[1773004780680,11.50299104,81.853,81.807,11.001]
[1773004781879,11.50299104,81.853,81.8,3.81821936]
[1773004782080,11.50299104,81.853,81.815,11.0]
[1773004782781,11.51870931,81.869,81.823,10.999]
[1773004786073,37.58058707,81.973,81.761,12.22]
[1773004786074,11.50013624,81.889,81.83,3.81821936]
[1773004786279,11.50013624,81.879,81.83,3.81821936]
[1773004787786,11.50013624,81.879,81.834,10.998]
[1773004794191,11.50013624,81.879,81.841,10.997]
[1773004796088,11.50013624,81.879,81.83,3.81821936]
[1773004796288,11.50013624,81.879,81.848,10.996]
[1773004799095,11.50013624,81.879,81.84,14.81521936]
[1773004801796,11.50013624,81.879,81.832,10.998]
[1773004803191,11.50013624,81.879,81.83,3.81821936]
[1773004803391,11.48859744,81.897,81.86,3.81821936]
[1773004803593,11.48859744,81.897,81.85,3.81821936]
[1773004803789,11.48859744,81.897,81.858,10.995]
[1773004804596,11.48859744,81.897,81.86,3.81821936]
[1773004806009,11.48859744,81.897,81.858,10.995]
[1773004812211,11.48859744,81.897,81.853,10.995]
[1773004812406,11.48859744,81.897,81.85,3.81821936]
[1773004812910,11.48859744,81.897,81.86,3.81821936]
[1773004813508,11.48859744,81.897,81.861,10.994]
[1773004814109,11.489497,81.909,81.86,3.81821936]
[1773004814908,11.489497,81.909,81.87,10.993]
[1773004823909,11.489497,81.909,81.877,10.992]
[1773004826313,3.81578838,81.91,81.885,10.991]
[1773004826520,11.50208607,81.921,81.885,10.991]
[1773004826818,11.50208607,81.935,81.89,3.81578838]
[1773004827922,11.49943778,81.945,81.9,3.81578838]
[1773004828511,11.49944784,81.939,81.854,21.991]
[1773004828716,11.49944784,81.939,81.88,3.81578838]
[1773004828918,11.49944784,81.939,81.89,3.81578838]
[1773004829120,11.49944784,81.939,81.9,3.81578838]
[1773004829315,11.49944784,81.939,81.89,3.81578838]
[1773004829520,11.50944111,81.949,81.9,3.81578838]
[1773004829825,11.50944111,81.949,81.89,3.81578838]
[1773004830521,11.50945181,81.939,81.88,3.81578838]
[1773004831022,11.50945181,81.939,81.89,3.81578838]
[1773004833825,11.50945181,81.939,81.891,10.99]
[1773004836326,11.52041583,81.929,81.882,10.991]
[1773004837326,3.81578838,81.92,81.872,10.993]
[1773004837522,11.51436029,81.919,81.872,10.993]
[1773004839625,3.81578838,81.91,81.872,10.993]
[1773004839824,11.51327903,81.909,81.872,10.993]
[1773004840020,11.51327903,81.909,81.863,10.994]
[1773004845029,11.51082702,81.919,81.839,21.995]
[1773004845231,11.51082702,81.919,81.87,3.81578838]
[1773004846333,11.51082702,81.919,81.872,10.993]
[1773004847427,11.51082702,81.919,81.879,10.992]
[1773004847734,11.51082702,81.919,81.88,3.81578838]
[1773004848831,11.51082702,81.919,81.884,10.991]
[1773004849024,11.51082702,81.919,81.89,3.81578838]
[1773004849227,10.984,81.939,81.89,3.81578838]
[1773004849228,11.51830194,81.938,81.89,3.81578838]
[1773004850729,11.51830194,81.938,81.891,10.99]
[1773004851631,11.51830194,81.938,81.898,10.989]
[1773004857136,3.81578838,81.93,81.89,3.81578838]
[1773004857334,11.47656924,81.929,81.889,10.99]
[1773004859433,11.47656924,81.929,81.881,10.992]
[1773004860034,11.47656924,81.929,81.89,3.81578838]
[1773004862540,11.47656924,81.929,81.888,10.991]
[1773004864543,11.47656924,81.929,81.88,10.992]
[1773004864743,11.47656924,81.929,81.88,14.80778838]
[1773004866844,10.985,81.928,81.88,14.80778838]
[1773004867044,11.49269506,81.927,81.88,14.80778838]
[1773004869047,11.49567519,81.919,81.87,3.81578838]
[1773004869248,11.49567519,81.909,81.86,3.81578838]
[1773004870150,11.50281035,81.92,81.87,3.81578838]
[1773004870346,11.50281035,81.92,81.88,3.81578838]
[1773004870749,11.50281035,81.92,81.89,3.81578838]
[1773004872549,11.47578365,81.939,81.892,10.99]
[1773004877851,11.47578365,81.939,81.9,3.81313596]
[1773004884658,11.47578365,81.939,81.902,10.989]
[1773004891773,11.47578365,81.939,81.9,3.81313596]
[1773004893372,14.99094711,81.982,81.837,12.22]
[1773004893373,11.36540996,81.929,81.885,10.991]
[1773004898679,11.36540996,81.929,81.891,10.99]
[1773004898882,11.36540996,81.929,81.89,3.81313596]
[1773004899178,11.36928287,81.919,81.87,3.81313596]
[1773004899979,11.36928287,81.919,81.87,14.80613596]
[1773004902479,11.36928287,81.919,81.87,10.993]
[1773004903575,3.81313596,81.91,81.87,10.993]
[1773004903775,11.36894173,81.909,81.87,10.993]
[1773004905583,11.36894173,81.909,81.87,14.80613596]
[1773004911288,11.36894173,81.909,81.838,21.995]
[1773004911289,11.36894173,81.909,81.88,3.81313596]
[1773004911484,11.11172924,81.929,81.89,3.81313596]
[1773004913991,11.11172924,81.929,81.883,10.991]
[1773004914594,11.11172924,81.929,81.89,14.80313596]
[1773004920792,3.81313596,81.92,81.87,3.81313596]
[1773004920992,11.1428663,81.919,81.87,3.81313596]
[1773004921201,11.1428663,81.919,81.86,3.81313596]
[1773004922892,11.1428663,81.919,81.864,10.994]
[1773004923097,11.14317633,81.909,81.864,10.994]
[1773004926701,11.14317633,81.909,81.87,3.81313596]
[1773004927004,11.14317633,81.909,81.88,3.81313596]
[1773004927403,11.14317633,81.909,81.87,3.81313596]
[1773004928806,11.14317633,81.909,81.874,10.993]
[1773004930507,11.14317633,81.909,81.881,10.992]
[1773004933005,11.14317633,81.909,81.87,3.81313596]
[1773004933308,11.12187163,81.899,81.85,3.81313596]
[1773004933707,11.12187163,81.899,81.813,22.002]
[1773004933910,11.12187163,81.899,81.85,3.81313596]
[1773004934309,11.12187163,81.899,81.813,22.002]
[1773004934310,11.12187163,81.899,81.86,3.81313596]
[1773004934510,11.11954702,81.929,81.88,3.81313596]
[1773004936611,11.11954702,81.929,81.878,10.992]
[1773004938613,3.81476533,81.92,81.878,10.992]
[1773004938809,11.11634278,81.919,81.878,10.992]
[1773004944418,11.11634278,81.919,81.886,10.991]
[1773004948917,11.11634278,81.919,81.877,10.992]
[1773004951519,11.11634278,81.919,81.88,3.81476533]
[1773004951726,11.11634278,81.919,81.87,3.81476533]
[1773004953019,11.11634278,81.919,81.875,10.992]
[1773004959236,11.11634278,81.919,81.88,3.81476533]
[1773004962341,11.11634278,81.919,81.875,10.992]
[1773004962635,3.81476533,81.93,81.833,207.41691624]
[1773004962636,11.07350835,81.889,81.84,3.81476533]
[1773004962827,3.81476533,81.9,81.85,3.81476533]
[1773004963033,3.81476533,81.91,81.861,1.02808091]
[1773004963734,3.81476533,81.91,81.866,10.994]
[1773004964934,5.74037808,81.909,81.866,10.994]
[1773004967035,5.74037808,81.909,81.874,1.08479101]
[1773004967835,5.74037808,81.909,81.88,10.992]
[1773004970440,5.74037808,81.909,81.874,1.08479101]
[1773004970834,5.74037808,81.909,81.877,10.992]
[1773004971742,5.74037808,81.909,81.87,3.81476533]
[1773004971743,5.74037808,81.923,81.887,10.991]
[1773004972041,5.74037808,81.923,81.887,12.14951056]
[1773004977847,5.74037808,81.923,81.89,3.81476533]
[1773004979236,5.74037808,81.923,81.894,10.99]
[1773004986754,5.74037808,81.923,81.894,12.31354408]
[1773004988663,5.74037808,81.923,81.896,10.99]
[1773004990958,5.54726333,81.939,81.902,1.35177188]
[1773004992663,5.54726333,81.939,81.906,1.28664644]
[1773004992863,5.54726333,81.939,81.896,1.29259018]
[1773004993464,5.54726333,81.939,81.9,3.81476533]
[1773004994464,5.54726333,81.939,81.9,5.1171347]
[1773004996062,5.54726333,81.939,81.9,1.30236937]
[1773004997369,10.984,81.939,81.9,1.30236937]
[1773004997569,5.54726333,81.919,81.871,1.31455689]
[1773004998470,5.54726333,81.919,81.882,1.31991661]
[1773004999864,5.54726333,81.919,81.883,10.991]
[1773005000072,5.54726333,81.919,81.883,12.30659429]
[1773005000272,5.54726333,81.919,81.884,1.31559429]